[Event "FIDE WYCC Girls U18 2023"]
[Site "Montesilvano"]
[Date "2023.11.24"]
[Round "11.17"]
[White "Dakic, Marta"]
[Black "Follana Albelda, Lucia"]
[Result "1/2-1/2"]
[ECO "B90"]
[WhiteElo "2013"]
[BlackElo "1946"]
[Annotator "NA RC"]
[PlyCount "101"]
[EventDate "2023.11.13"]
[EventType "swiss"]
[EventCountry "ITA"]
[SourceTitle "playchess.com"]
[Source "ChessBase"]
[SourceQuality "1"]
[TimeControl "40/5400+30:1800+30"]

1. e4 {[%emt 0:00:02]} c5 {[%emt 0:00:31]} 2. Nf3 {[%emt 0:00:13]} d6 {[%emt 0:00:08]} 3. d4 {[%emt 0:00:10]} cxd4 {[%emt 0:00:06]} 4. Nxd4 {[%emt 0:00:08]} Nf6 {[%emt 0:00:09]} 5. Nc3 {[%emt 0:00:11]} a6 {[%emt 0:00:11]} 6. f3 {[%emt 0:00:31]} e5 {[%emt 0:00:10]} 7. Nb3 {[%emt 0:00:08]} Be6 {[%emt 0:00:12]} 8. Be3 {[%emt 0:00:17]} Be7 {[%emt 0:00:06]} 9. Qd2 {[%emt 0:00:39]} h5 {[%emt 0:00:09]} 10. Nd5 {[%emt 0:00:07]} Nxd5 {[%emt 0:00:06]} 11. exd5 {[%emt 0:00:07]} Bf5 {[%emt 0:00:06]} 12. Be2 {[%emt 0:00:27]} a5 {[%emt 0:01:08]} 13. a4 {[%emt 0:02:51]} Nd7 {[%emt 0:01:07]} 14. O-O {[%emt 0:01:55]} O-O {[%emt 0:00:21]} 15. c4 {[%emt 0:08:17]} Re8 {[%emt 0:06:23]} 16. Rad1 {[%emt 0:08:49]} b6 {[%emt 0:01:05]} 17. f4 {[%emt 0:01:53]} exf4 {[%emt 0:02:20]} 18. Bxf4 {[%emt 0:00:56]} Bg6 {[%emt 0:02:02]} 19. Rf3 {[%emt 0:10:33]} Qc7 {[%emt 0:14:46]} 20. Nd4 {[%emt 0:04:33]} Nc5 {[%emt 0:02:04]} 21. b3 {[%emt 0:01:57]} Qd7 {[%emt 0:04:16]} 22. Rdf1 {[%emt 0:06:25]} Bf6 {[%emt 0:03:13]} 23. Nb5 {[%emt 0:01:34]} Be5 {[%emt 0:06:50]} 24. Bd1 {[%emt 0:06:43]} Bxf4 {[%emt 0:08:35]} 25. Rxf4 {[%emt 0:02:45]} Re5 {[%emt 0:00:59]} 26. Bc2 {[%emt 0:05:51]} Rae8 {[%emt 0:02:46]} 27. Bxg6 {[%emt 0:04:31]} fxg6 {[%emt 0:03:13]} 28. Rf7 {[%emt 0:00:13]} R8e7 {[%emt 0:06:06]} 29. Rf8+ {[%emt 0:06:02]} Kh7 {[%emt 0:00:12]} 30. Nd4 {[%emt 0:00:09]} Re4 {[%emt 0:09:08]} 31. Nf3 {[%emt 0:02:58]} Rg4 {[%emt 0:06:02]} 32. Ng5+ {[%emt 0:00:42]} Rxg5 {[%emt 0:00:08]} 33. Qxg5 {[%emt 0:00:04]} Ne4 {[%emt 0:01:33]} 34. Qf4 {[%emt 0:02:17]} Nf6 {[%emt 0:00:26]} 35. Qf2 {[%emt 0:01:24]} Qg4 {[%emt 0:04:35]} 36. h3 {[%emt 0:01:40]} Qe4 {[%emt 0:01:58]} 37. Rd8 {[%emt 0:02:09]} Qd3 {[%emt 0:01:04]} 38. Qxb6 {[%emt 0:03:28]} Re2 {[%emt 0:05:12]} 39. Qxd6 {[%emt 0:03:53]} Qe3+ {[%emt 0:07:36]} 40. Kh2 {[%emt 0:00:00]} Qd2 {[%emt 0:00:00]} 41. Qb8 {[%emt 0:10:42]} Rxg2+ {[%emt 0:09:39]} 42. Kh1 {[%emt 0:00:06]} g5 {[%emt 0:00:10]} 43. Rh8+ {[%emt 0:00:24]} Kg6 {[%emt 0:00:06]} 44. Rxf6+ {[%emt 0:17:47]} gxf6 {[%emt 0:00:06]} 45. Qe8+ {[%emt 0:00:22]} Kf5 {[%emt 0:00:07]} 46. Qe6+ {[%emt 0:00:33]} Kf4 {[%emt 0:00:08]} 47. Qxf6+ {[%emt 0:00:07]} Kg3 {[%emt 0:00:16]} 48. Qe5+ {[%emt 0:00:07]} Kh4 {[%emt 0:00:39]} 49. Qe4+ {[%emt 0:02:10]} Kg3 {[%emt 0:00:19]} 50. Qe5+ {[%emt 0:00:13]} Kh4 {[%emt 0:00:08]} 51. Qe4+ {[%emt 0:00:31]} 1/2-1/2

[Event "FIDE WYCC Girls U18 2023"]
[Site "Montesilvano"]
[Date "2023.11.24"]
[Round "11.18"]
[White "Matute Escobar, Roxanny"]
[Black "Bhagyashree Patil"]
[Result "0-1"]
[ECO "C50"]
[WhiteElo "1995"]
[BlackElo "1830"]
[Annotator "NA RC"]
[PlyCount "110"]
[EventDate "2023.11.13"]
[EventType "swiss"]
[EventCountry "ITA"]
[SourceTitle "playchess.com"]
[Source "ChessBase"]
[SourceQuality "1"]
[TimeControl "40/5400+30:1800+30"]

1. e4 {[%emt 0:01:50]} e5 {[%emt 0:00:22]} 2. Nf3 {[%emt 0:00:41]} Nc6 {[%emt 0:00:08]} 3. Bc4 {[%emt 0:00:06]} Be7 {[%emt 0:00:02]} 4. c3 {[%emt 0:00:22]} Nf6 {[%emt 0:00:16]} 5. d3 {[%emt 0:00:07]} d6 {[%emt 0:00:04]} 6. Bb3 {[%emt 0:00:23]} O-O {[%emt 0:00:29]} 7. Nbd2 {[%emt 0:00:07]} Kh8 {[%emt 0:02:28]} 8. Nf1 {[%emt 0:03:20]} Ng8 {[%emt 0:04:47]} 9. h4 {[%emt 0:06:20]} f5 {[%emt 0:06:10]} 10. Ng5 {[%emt 0:07:59]} Qe8 {[%emt 0:01:24]} 11. exf5 {[%emt 0:12:22]} Bxf5 {[%emt 0:09:14]} 12. g4 {[%emt 0:00:24]} Bd7 {[%emt 0:02:08]} 13. Qe2 {[%emt 0:08:40]} Nd8 {[%emt 0:12:55]} 14. Be3 {[%emt 0:11:35]} c6 {[%emt 0:01:57]} 15. O-O-O {[%emt 0:06:44]} d5 {[%emt 0:00:50]} 16. f3 {[%emt 0:00:37]} Nf6 {[%emt 0:14:29]} 17. Ng3 {[%emt 0:03:42]} b5 {[%emt 0:01:53]} 18. d4 {[%emt 0:10:01]} e4 {[%emt 0:01:00]} 19. fxe4 {[%emt 0:01:30]} Bxg4 {[%emt 0:01:03]} 20. Qd3 {[%emt 0:00:16]} dxe4 {[%emt 0:01:16]} 21. N3xe4 {[%emt 0:00:19]} Nxe4 {[%emt 0:01:21]} 22. Nxe4 {[%emt 0:00:38]} Ne6 {[%emt 0:03:37]} 23. Rdf1 {[%emt 0:02:15]} Qg6 {[%emt 0:02:48]} 24. Bc2 {[%emt 0:05:02]} h5 {[%emt 0:03:13]} 25. d5 {[%emt 0:02:31]} Rad8 {[%emt 0:03:23]} 26. d6 {[%emt 0:04:21]} Bxd6 {[%emt 0:03:53]} 27. Nxd6 {[%emt 0:00:08]} Qxd3 {[%emt 0:00:13]} 28. Rxf8+ {[%emt 0:00:05]} Nxf8 {[%emt 0:00:16]} 29. Bxd3 {[%emt 0:00:05]} Rxd6 {[%emt 0:00:05]} 30. Kc2 {[%emt 0:00:16]} Ne6 {[%emt 0:02:12]} 31. Rf1 {[%emt 0:02:10]} a6 {[%emt 0:00:36]} 32. Rf7 {[%emt 0:01:49]} Kg8 {[%emt 0:02:56]} 33. Ra7 {[%emt 0:00:15]} c5 {[%emt 0:00:15]} 34. Bg6 {[%emt 0:01:47]} c4 {[%emt 0:09:30]} 35. Bc5 {[%emt 0:02:01]} Rd5 {[%emt 0:04:14]} 36. Bf7+ {[%emt 0:03:39]} Kh7 {[%emt 0:00:31]} 37. Bxe6 {[%emt 0:00:15]} Rxc5 {[%emt 0:01:01]} 38. Rxa6 {[%emt 0:00:06]} Re5 {[%emt 0:01:53]} 39. Bxg4 {[%emt 0:01:25]} hxg4 {[%emt 0:00:02]} 40. Rd6 {[%emt 0:00:00]} Rh5 {[%emt 0:00:00]} 41. a4 {[%emt 0:05:39]} bxa4 {[%emt 0:03:54]} 42. Rd4 {[%emt 0:00:06]} Rxh4 {[%emt 0:00:39]} 43. Rxc4 {[%emt 0:00:05]} Rh2+ {[%emt 0:00:03]} 44. Kd3 {[%emt 0:00:51]} Rxb2 {[%emt 0:02:33]} 45. Rxg4 {[%emt 0:00:42]} a3 {[%emt 0:00:04]} 46. Ra4 {[%emt 0:00:06]} a2 {[%emt 0:00:31]} 47. c4 {[%emt 0:00:24]} g5 {[%emt 0:00:13]} 48. c5 {[%emt 0:00:22]} Kg6 {[%emt 0:00:57]} 49. Ra6+ {[%emt 0:03:17]} Kf5 {[%emt 0:12:42]} 50. c6 {[%emt 0:00:25]} Ke6 {[%emt 0:00:10]} 51. c7+ {[%emt 0:00:30]} Kd7 {[%emt 0:00:03]} 52. Rc6 {[%emt 0:00:14]} Kc8 {[%emt 0:00:43]} 53. Ra6 {[%emt 0:00:17]} g4 {[%emt 0:02:29]} 54. Ke4 {[%emt 0:01:09]} g3 {[%emt 0:00:19]} 55. Kd5 {[%emt 0:00:10]} Kxc7 {[%emt 0:00:32]} 0-1

[Event "FIDE WYCC Girls U18 2023"]
[Site "Montesilvano"]
[Date "2023.11.24"]
[Round "11.19"]
[White "Skarbarchuk, Tetyana"]
[Black "Sovetbekova, Nurai"]
[Result "0-1"]
[ECO "D38"]
[WhiteElo "2010"]
[BlackElo "1801"]
[Annotator "NA RC"]
[PlyCount "98"]
[EventDate "2023.11.13"]
[EventType "swiss"]
[EventCountry "ITA"]
[SourceTitle "playchess.com"]
[Source "ChessBase"]
[SourceQuality "1"]
[TimeControl "40/5400+30:1800+30"]

1. d4 {[%emt 0:00:04]} Nf6 {[%emt 0:00:07]} 2. c4 {[%emt 0:00:06]} e6 {[%emt 0:00:04]} 3. Nf3 {[%emt 0:00:11]} d5 {[%emt 0:00:06]} 4. Nc3 {[%emt 0:00:12]} Bb4 {[%emt 0:00:06]} 5. Qa4+ {[%emt 0:01:36]} Nc6 {[%emt 0:00:07]} 6. e3 {[%emt 0:01:40]} O-O {[%emt 0:02:50]} 7. Bd2 {[%emt 0:00:09]} dxc4 {[%emt 0:06:15]} 8. Bxc4 {[%emt 0:03:23]} Bd6 {[%emt 0:01:38]} 9. O-O {[%emt 0:09:50]} e5 {[%emt 0:02:41]} 10. d5 {[%emt 0:09:07]} e4 {[%emt 0:33:03]} 11. Nxe4 {[%emt 0:04:40]} Nxe4 {[%emt 0:01:16]} 12. dxc6 {[%emt 0:00:04]} Nxd2 {[%emt 0:06:54]} 13. Nxd2 {[%emt 0:00:09]} bxc6 {[%emt 0:02:39]} 14. Ne4 {[%emt 0:03:11]} Bd7 {[%emt 0:04:50]} 15. Rfd1 {[%emt 0:05:33]} Qe7 {[%emt 0:01:06]} 16. Nxd6 {[%emt 0:00:34]} cxd6 {[%emt 0:00:04]} 17. Qa3 {[%emt 0:01:42]} c5 {[%emt 0:01:57]} 18. Qa6 {[%emt 0:03:19]} Be6 {[%emt 0:07:09]} 19. Bxe6 {[%emt 0:01:39]} fxe6 {[%emt 0:00:03]} 20. Qxd6 {[%emt 0:01:36]} Qf6 {[%emt 0:00:15]} 21. f3 {[%emt 0:07:03]} Rad8 {[%emt 0:09:24]} 22. Qxc5 {[%emt 0:04:28]} Qxb2 {[%emt 0:00:04]} 23. Qc4 {[%emt 0:08:48]} Qe5 {[%emt 0:01:36]} 24. e4 {[%emt 0:03:12]} Rc8 {[%emt 0:02:31]} 25. Qd4 {[%emt 0:01:40]} Qg5 {[%emt 0:01:09]} 26. Qd2 {[%emt 0:04:44]} Qc5+ {[%emt 0:02:53]} 27. Kh1 {[%emt 0:00:06]} Qb6 {[%emt 0:01:21]} 28. Rac1 {[%emt 0:04:06]} Rxc1 {[%emt 0:02:26]} 29. Qxc1 {[%emt 0:00:08]} Rd8 {[%emt 0:01:53]} 30. Rxd8+ {[%emt 0:02:13]} Qxd8 {[%emt 0:00:02]} 31. h3 {[%emt 0:03:41]} Qd4 {[%emt 0:02:22]} 32. a3 h6 33. Qc8+ {[%emt 0:02:04]} Kf7 {[%emt 0:00:35]} 34. Qb7+ {[%emt 0:02:13]} Kf6 {[%emt 0:01:22]} 35. Qb4 {[%emt 0:01:35]} Qxb4 {[%emt 0:02:19]} 36. axb4 {[%emt 0:00:05]} Ke5 {[%emt 0:00:05]} 37. Kh2 {[%emt 0:00:55]} Kd4 {[%emt 0:01:10]} 38. Kg3 {[%emt 0:07:20]} Kc4 {[%emt 0:01:57]} 39. Kf4 {[%emt 0:00:07]} Kxb4 {[%emt 0:00:37]} 40. Ke5 {[%emt 0:00:00]} a5 {[%emt 0:00:00]} 41. Kxe6 {[%emt 0:00:14]} a4 {[%emt 0:01:38]} 42. Kd7 {[%emt 0:01:04]} a3 {[%emt 0:00:09]} 43. e5 {[%emt 0:00:07]} a2 {[%emt 0:00:11]} 44. e6 {[%emt 0:00:04]} a1=Q {[%emt 0:00:17]} 45. e7 {[%emt 0:00:12]} Qa4+ {[%emt 0:03:20]} 46. Kd8 {[%emt 0:00:16]} Qa5+ {[%emt 0:01:11]} 47. Kd7 {[%emt 0:00:40]} Qd5+ {[%emt 0:03:21]} 48. Kc7 {[%emt 0:00:08]} Qe6 {[%emt 0:00:16]} 49. Kd8 {[%emt 0:00:06]} Qd6+ {[%emt 0:00:09]} 0-1

[Event "FIDE WYCC Girls U18 2023"]
[Site "Montesilvano"]
[Date "2023.11.24"]
[Round "11.20"]
[White "Menon, Gauri"]
[Black "Sukyte, Kotryna"]
[Result "0-1"]
[ECO "D26"]
[WhiteElo "1821"]
[BlackElo "1651"]
[Annotator "NA RC"]
[PlyCount "70"]
[EventDate "2023.11.13"]
[EventType "swiss"]
[EventCountry "ITA"]
[SourceTitle "playchess.com"]
[Source "ChessBase"]
[SourceQuality "1"]
[TimeControl "40/5400+30:1800+30"]

1. d4 {[%emt 0:00:06]} d5 {[%emt 0:00:07]} 2. c4 {[%emt 0:00:08]} dxc4 {[%emt 0:00:21]} 3. Nf3 {[%emt 0:00:18]} Nf6 {[%emt 0:00:15]} 4. e3 {[%emt 0:00:11]} e6 {[%emt 0:00:20]} 5. Bxc4 {[%emt 0:00:15]} a6 {[%emt 0:00:33]} 6. b3 {[%emt 0:01:01]} c5 {[%emt 0:01:17]} 7. Bb2 {[%emt 0:01:02]} Nc6 {[%emt 0:02:16]} 8. O-O {[%emt 0:00:50]} b5 {[%emt 0:00:39]} 9. Be2 {[%emt 0:00:21]} Bb7 {[%emt 0:01:18]} 10. a4 {[%emt 0:00:30]} b4 {[%emt 0:02:19]} 11. Nbd2 {[%emt 0:01:39]} cxd4 {[%emt 0:04:58]} 12. Nxd4 {[%emt 0:00:49]} Nxd4 {[%emt 0:01:56]} 13. Bxd4 {[%emt 0:00:48]} Rc8 {[%emt 0:05:09]} 14. Nc4 {[%emt 0:02:54]} Be7 {[%emt 0:02:46]} 15. Bf3 {[%emt 0:03:38]} Bxf3 {[%emt 0:09:22]} 16. Qxf3 {[%emt 0:00:38]} O-O {[%emt 0:02:39]} 17. Qb7 {[%emt 0:10:24]} Nd5 {[%emt 0:22:24]} 18. Qxa6 {[%emt 0:01:42]} Ra8 {[%emt 0:02:40]} 19. Qb5 {[%emt 0:04:59]} Nc3 {[%emt 0:04:34]} 20. Bxc3 {[%emt 0:10:11]} bxc3 {[%emt 0:00:13]} 21. Rfd1 {[%emt 0:07:28]} Qb8 {[%emt 0:07:38]} 22. Qb6 {[%emt 0:07:26]} Qxb6 {[%emt 0:05:23]} 23. Nxb6 {[%emt 0:00:09]} Ra7 {[%emt 0:00:40]} 24. Nd7 {[%emt 0:19:58]} c2 {[%emt 0:08:53]} 25. Rd4 {[%emt 0:04:56]} Rc8 {[%emt 0:05:07]} 26. Rc1 {[%emt 0:00:43]} Rxd7 {[%emt 0:02:44]} 27. Rxd7 {[%emt 0:00:27]} Ba3 {[%emt 0:00:10]} 28. Rxc2 {[%emt 0:01:20]} Rxc2 {[%emt 0:00:11]} 29. Rd8+ {[%emt 0:00:03]} Bf8 {[%emt 0:00:10]} 30. h4 {[%emt 0:00:12]} g6 {[%emt 0:00:43]} 31. b4 {[%emt 0:00:04]} Rc4 {[%emt 0:01:06]} 32. b5 {[%emt 0:00:20]} Rxa4 {[%emt 0:00:17]} 33. b6 {[%emt 0:00:04]} Rb4 {[%emt 0:00:15]} 34. Rb8 {[%emt 0:00:24]} Kg7 {[%emt 0:00:19]} 35. b7 {[%emt 0:00:06]} Rb1+ 0-1

[Event "FIDE WYCC Girls U18 2023"]
[Site "Montesilvano"]
[Date "2023.11.24"]
[Round "11.21"]
[White "Hernandez Ortega, Carolina"]
[Black "Saraci, Rinesa"]
[Result "0-1"]
[ECO "C54"]
[WhiteElo "1796"]
[BlackElo "1481"]
[Annotator "NA"]
[PlyCount "104"]
[EventDate "2023.11.13"]
[EventType "swiss"]
[EventCountry "ITA"]
[SourceTitle "playchess.com"]
[Source "ChessBase"]
[SourceQuality "1"]
[TimeControl "40/5400+30:1800+30"]

1. e4 {[%emt 0:00:05]} e5 {[%emt 0:00:28]} 2. Nf3 {[%emt 0:00:08]} Nc6 {[%emt 0:00:10]} 3. Bc4 {[%emt 0:00:15]} Bc5 {[%emt 0:00:15]} 4. c3 {[%emt 0:00:12]} Nf6 {[%emt 0:01:08]} 5. d3 {[%emt 0:00:21]} h6 {[%emt 0:03:27]} 6. Nbd2 {[%emt 0:02:22]} d6 {[%emt 0:01:21]} 7. O-O {[%emt 0:00:50]} O-O {[%emt 0:01:44]} 8. Re1 {[%emt 0:00:59]} a5 {[%emt 0:03:27]} 9. a4 {[%emt 0:04:28]} Bb6 {[%emt 0:05:45]} 10. Nf1 {[%emt 0:01:06]} Ng4 {[%emt 0:06:49]} 11. Ne3 {[%emt 0:00:33]} Nf6 {[%emt 0:04:37]} 12. h3 {[%emt 0:03:22]} Be6 {[%emt 0:01:38]} 13. Qb3 {[%emt 0:03:06]} Qc8 {[%emt 0:09:53]} 14. Bxe6 {[%emt 0:06:19]} fxe6 {[%emt 0:05:40]} 15. Nc4 {[%emt 0:11:00]} Ba7 {[%emt 0:06:06]} 16. Be3 {[%emt 0:04:25]} Bxe3 {[%emt 0:07:46]} 17. Nxe3 {[%emt 0:00:48]} Kh7 {[%emt 0:01:11]} 18. Nc2 {[%emt 0:05:26]} Qd7 {[%emt 0:08:47]} 19. Rad1 {[%emt 0:03:25]} Rfe8 {[%emt 0:07:04]} 20. d4 {[%emt 0:12:28]} exd4 {[%emt 0:00:44]} 21. Ncxd4 {[%emt 0:00:08]} e5 {[%emt 0:02:03]} 22. Nf5 {[%emt 0:02:36]} b6 {[%emt 0:02:43]} 23. Qc2 {[%emt 0:03:30]} Qf7 {[%emt 0:02:11]} 24. Kh2 {[%emt 0:02:28]} Ne7 {[%emt 0:01:40]} 25. Nxe7 {[%emt 0:02:54]} Rxe7 {[%emt 0:00:34]} 26. Re3 {[%emt 0:02:46]} Nh5 {[%emt 0:02:37]} 27. Nh4 {[%emt 0:04:16]} Qf4+ {[%emt 0:02:36]} 28. g3 {[%emt 0:00:05]} Nxg3 {[%emt 0:01:27]} 29. Rxg3 {[%emt 0:00:05]} Qxh4 {[%emt 0:00:24]} 30. Rg4 {[%emt 0:00:17]} Qf6 {[%emt 0:01:11]} 31. Rdg1 {[%emt 0:03:23]} Rf8 {[%emt 0:01:04]} 32. R1g2 {[%emt 0:00:07]} g5 {[%emt 0:04:35]} 33. b4 {[%emt 0:04:10]} Ref7 {[%emt 0:02:21]} 34. Kg1 {[%emt 0:03:34]} Qe6 {[%emt 0:00:10]} 35. bxa5 {[%emt 0:00:32]} bxa5 {[%emt 0:02:21]} 36. c4 Qd7 37. h4 {[%emt 0:01:46]} gxh4 {[%emt 0:02:20]} 38. Rxh4 {[%emt 0:00:26]} Rg7 {[%emt 0:00:35]} 39. Qd2 {[%emt 0:00:35]} Rxg2+ {[%emt 0:00:31]} 40. Kxg2 {[%emt 0:00:00]} Qg7+ {[%emt 0:00:00]} 41. Kf1 {[%emt 0:00:33]} Qf6 {[%emt 0:02:11]} 42. Rg4 {[%emt 0:01:10]} Qf3 {[%emt 0:05:49]} 43. Qe2 {[%emt 0:01:18]} Qh1+ {[%emt 0:03:45]} 44. Rg1 {[%emt 0:00:09]} Qh3+ {[%emt 0:00:07]} 45. Ke1 {[%emt 0:00:39]} Qc3+ {[%emt 0:00:30]} 46. Kf1 {[%emt 0:01:34]} Qc1+ {[%emt 0:00:12]} 47. Qe1 {[%emt 0:00:05]} Qxc4+ {[%emt 0:00:38]} 48. Qe2 {[%emt 0:00:04]} Qxa4 {[%emt 0:06:27]} 49. Qg4 {[%emt 0:00:16]} Qa1+ {[%emt 0:00:29]} 50. Kg2 {[%emt 0:00:49]} Qxg1+ {[%emt 0:00:12]} 51. Kxg1 {[%emt 0:00:06]} Rg8 {[%emt 0:00:03]} 52. Qxg8+ {[%emt 0:00:07]} Kxg8 {[%emt 0:00:04]} 0-1

[Event "FIDE WYCC Girls U18 2023"]
[Site "Montesilvano"]
[Date "2023.11.24"]
[Round "11.22"]
[White "Keerti Shree Reddy"]
[Black "Tsapaki, Asimenia"]
[Result "1-0"]
[ECO "C01"]
[WhiteElo "1741"]
[BlackElo "1702"]
[Annotator "NA"]
[PlyCount "113"]
[EventDate "2023.11.13"]
[EventType "swiss"]
[EventCountry "ITA"]
[SourceTitle "playchess.com"]
[Source "ChessBase"]
[SourceQuality "1"]
[TimeControl "40/5400+30:1800+30"]

1. e4 {[%emt 0:02:05]} e6 {[%emt 0:00:02]} 2. d4 {[%emt 0:00:07]} d5 {[%emt 0:00:05]} 3. exd5 {[%emt 0:00:05]} exd5 {[%emt 0:00:06]} 4. Nf3 {[%emt 0:00:04]} Nf6 {[%emt 0:00:09]} 5. Bd3 {[%emt 0:00:08]} c5 {[%emt 0:00:08]} 6. c3 {[%emt 0:00:09]} Bd6 {[%emt 0:01:19]} 7. O-O {[%emt 0:01:42]} O-O {[%emt 0:00:24]} 8. dxc5 {[%emt 0:01:13]} Bxc5 {[%emt 0:00:10]} 9. Bg5 {[%emt 0:02:20]} Bg4 {[%emt 0:03:48]} 10. Nbd2 {[%emt 0:06:30]} Nbd7 {[%emt 0:01:31]} 11. Qc2 {[%emt 0:01:47]} Qb6 {[%emt 0:01:40]} 12. h3 {[%emt 0:02:43]} Bh5 {[%emt 0:01:28]} 13. Bf5 {[%emt 0:09:06]} Rfe8 {[%emt 0:05:36]} 14. b4 {[%emt 0:06:08]} Bd6 {[%emt 0:02:27]} 15. Rfe1 {[%emt 0:14:28]} Bg6 {[%emt 0:07:28]} 16. Bxg6 {[%emt 0:05:54]} hxg6 {[%emt 0:00:12]} 17. Qd3 {[%emt 0:00:22]} Ne5 {[%emt 0:03:26]} 18. Nxe5 {[%emt 0:03:13]} Bxe5 {[%emt 0:00:55]} 19. Be3 {[%emt 0:04:00]} Qc7 {[%emt 0:04:03]} 20. Bd4 {[%emt 0:00:51]} Rac8 {[%emt 0:02:08]} 21. Nf3 {[%emt 0:06:52]} Bxd4 {[%emt 0:01:07]} 22. cxd4 {[%emt 0:00:16]} Qc4 {[%emt 0:08:04]} 23. Qa3 {[%emt 0:04:04]} Rxe1+ {[%emt 0:05:23]} 24. Rxe1 {[%emt 0:00:09]} Ne4 {[%emt 0:00:24]} 25. Qxa7 {[%emt 0:09:07]} Qxb4 {[%emt 0:00:53]} 26. Rf1 {[%emt 0:00:32]} f6 {[%emt 0:11:20]} 27. a3 {[%emt 0:00:22]} Qb5 {[%emt 0:01:04]} 28. a4 {[%emt 0:00:52]} Qa6 {[%emt 0:04:59]} 29. Qxa6 {[%emt 0:00:59]} bxa6 {[%emt 0:00:04]} 30. Rb1 {[%emt 0:00:38]} Rc4 {[%emt 0:01:05]} 31. Rb8+ {[%emt 0:03:23]} Kh7 {[%emt 0:00:53]} 32. Rd8 {[%emt 0:00:38]} Nc3 {[%emt 0:00:51]} 33. a5 {[%emt 0:01:36]} Ra4 {[%emt 0:00:49]} 34. g4 {[%emt 0:00:53]} Rxa5 {[%emt 0:02:08]} 35. g5 {[%emt 0:00:28]} Ra1+ {[%emt 0:03:17]} 36. Kg2 {[%emt 0:00:25]} a5 {[%emt 0:00:16]} 37. Rd7 {[%emt 0:02:18]} f5 {[%emt 0:01:22]} 38. Rd8 {[%emt 0:07:20]} Ne4 {[%emt 0:08:35]} 39. h4 {[%emt 0:02:10]} Rc1 {[%emt 0:02:35]} 40. Ne5 {[%emt 0:00:00]} Rc7 {[%emt 0:00:00]} 41. h5 {[%emt 0:06:53]} gxh5 {[%emt 0:03:50]} 42. g6+ {[%emt 0:00:32]} Kh6 {[%emt 0:00:05]} 43. f4 {[%emt 0:00:35]} Rc2+ {[%emt 0:02:08]} 44. Kh3 {[%emt 0:05:26]} Ng5+ {[%emt 0:05:38]} 45. fxg5+ {[%emt 0:01:06]} Kxg5 {[%emt 0:00:20]} 46. Rxd5 {[%emt 0:00:36]} a4 {[%emt 0:00:47]} 47. Rd7 {[%emt 0:04:21]} Kh6 {[%emt 0:10:33]} 48. Ra7 {[%emt 0:00:53]} Rc3+ {[%emt 0:00:38]} 49. Kh4 {[%emt 0:00:39]} Rc1 {[%emt 0:00:28]} 50. Rxa4 {[%emt 0:00:56]} f4 {[%emt 0:00:10]} 51. Kh3 {[%emt 0:01:35]} Rd1 {[%emt 0:00:51]} 52. Ra8 {[%emt 0:04:05]} Kg5 {[%emt 0:01:35]} 53. Ra7 {[%emt 0:00:37]} Kh6 {[%emt 0:00:45]} 54. Rd7 {[%emt 0:00:59]} Re1 {[%emt 0:02:29]} 55. Rd6 {[%emt 0:01:17]} Re3+ {[%emt 0:00:08]} 56. Kh4 {[%emt 0:00:55]} Rxe5 {[%emt 0:01:24]} 57. dxe5 {[%emt 0:00:12]} 1-0

[Event "FIDE WYCC Girls U18 2023"]
[Site "Montesilvano"]
[Date "2023.11.24"]
[Round "11.23"]
[White "Largo, Franchesca"]
[Black "Hyatt, Jessica"]
[Result "1-0"]
[ECO "C02"]
[WhiteElo "1658"]
[BlackElo "1818"]
[Annotator "NA COMBH RC"]
[PlyCount "65"]
[EventDate "2023.11.13"]
[EventType "swiss"]
[EventCountry "ITA"]
[SourceTitle "playchess.com"]
[Source "ChessBase"]
[SourceQuality "1"]
[TimeControl "40/5400+30:1800+30"]

1. e4 {[%emt 0:00:52]} e6 {[%emt 0:08:10]} 2. d4 {[%emt 0:00:30]} d5 {[%emt 0:00:10]} 3. e5 {[%emt 0:00:16]} c5 {[%emt 0:00:10]} 4. c3 {[%emt 0:00:47]} Nc6 {[%emt 0:00:21]} 5. Nf3 {[%emt 0:00:29]} Bd7 {[%emt 0:00:12]} 6. Bd3 {[%emt 0:01:38]} Qb6 {[%emt 0:00:31]} 7. O-O {[%emt 0:00:16]} cxd4 {[%emt 0:00:04]} 8. Re1 {[%emt 0:00:27]} dxc3 {[%emt 0:03:39]} 9. Nxc3 {[%emt 0:00:08]} a6 {[%emt 0:00:06]} 10. Ng5 {[%emt 0:02:10]} g6 {[%emt 0:06:25]} 11. Qf3 {[%emt 0:52:55]} Nd8 {[%emt 0:14:15]} 12. h4 {[%emt 0:22:20]} Bc6 {[%emt 0:11:16]} 13. h5 {[%emt 0:01:19]} h6 {[%emt 0:05:39]} 14. hxg6 {[%emt 0:12:33]} hxg5 {[%emt 0:00:44]} 15. Bxg5 {[%emt 0:00:36]} Qc7 {[%emt 0:05:11]} 16. Bf6 {[%emt 0:00:38]} Nxf6 {[%emt 0:04:49]} 17. exf6 {[%emt 0:00:31]} fxg6 {[%emt 0:01:30]} 18. Bxg6+ {[%emt 0:00:07]} Kd7 {[%emt 0:00:14]} 19. g3 {[%emt 0:00:34]} Bb4 20. f7 {[%emt 0:00:24]} Qd6 {[%emt 0:08:50]} 21. Qf6 {[%emt 0:00:41]} Bxc3 {[%emt 0:01:27]} 22. bxc3 {[%emt 0:00:06]} Qf8 {[%emt 0:00:26]} 23. Re5 {[%emt 0:00:55]} Rc8 {[%emt 0:12:37]} 24. Rg5 {[%emt 0:00:33]} Rc7 {[%emt 0:02:43]} 25. Bh5 {[%emt 0:00:37]} Rh6 {[%emt 0:07:22]} 26. Qg7 {[%emt 0:00:25]} Rh8 {[%emt 0:01:25]} 27. g4 {[%emt 0:00:41]} d4 {[%emt 0:03:22]} 28. Qxd4+ {[%emt 0:00:22]} Kc8 {[%emt 0:00:11]} 29. Qxh8 {[%emt 0:00:31]} Qxh8 30. Rg8 {[%emt 0:00:06]} Qxc3 {[%emt 0:00:30]} 31. Rxd8+ {[%emt 0:00:08]} Kxd8 {[%emt 0:00:06]} 32. f8=Q+ {[%emt 0:00:08]} Kd7 {[%emt 0:00:10] Check Result:#1} 33. Be8+ {[%emt 0:00:10]} 1-0